[Event "*** Titled Tuesday 3|2 Blitz"]
[Site "Chess.com"]
[Date "2016.10.04"]
[Round "6"]
[White "ChessWarrior7197"]
[Black "gmjoey1"]
[Result "1-0"]
[WhiteElo "2484"]
[BlackElo "2533"]
[TimeControl "180+2"]
[EndTime "12:15:35 PDT"]
[Termination "ChessWarrior7197 won on time"]

1. e4 {[%clk 0:03:01.9]} 1... c6 {[%clk 0:02:59.7]} 2. d4 {[%clk 0:03:02.7]}
2... d5 {[%clk 0:03:01.6]} 3. Nc3 {[%clk 0:03:03.8]} 3... dxe4 {[%clk 0:03:02]}
4. Nxe4 {[%clk 0:03:05.7]} 4... Bf5 {[%clk 0:03:02.3]} 5. Ng3 {[%clk 0:03:06.5]}
5... Bg6 {[%clk 0:03:03.3]} 6. h4 {[%clk 0:03:07.6]} 6... h6 {[%clk 0:03:04.8]}
7. Nf3 {[%clk 0:03:08]} 7... Nd7 {[%clk 0:03:05.5]} 8. h5 {[%clk 0:03:09.4]}
8... Bh7 {[%clk 0:03:07]} 9. Bd3 {[%clk 0:03:10.4]} 9... Bxd3 {[%clk 0:03:08.5]}
10. Qxd3 {[%clk 0:03:12.3]} 10... e6 {[%clk 0:03:10.4]} 11. Bd2 {[%clk
0:03:12.7]} 11... Ngf6 {[%clk 0:03:11.9]} 12. O-O-O {[%clk 0:03:12.8]} 12... Be7
{[%clk 0:03:13.5]} 13. Kb1 {[%clk 0:03:12.6]} 13... Qb6 {[%clk 0:03:14.2]} 14.
Ne4 {[%clk 0:03:10.5]} 14... Nxe4 {[%clk 0:03:07.2]} 15. Qxe4 {[%clk 0:03:12.4]}
15... a5 {[%clk 0:03:08.9]} 16. Bc1 {[%clk 0:02:56.1]} 16... a4 {[%clk
0:03:08.2]} 17. Ne5 {[%clk 0:02:53.6]} 17... Nf6 {[%clk 0:03:08]} 18. Qf3 {[%clk
0:02:50.4]} 18... Rd8 {[%clk 0:03:00.6]} 19. c3 {[%clk 0:02:39.1]} 19... O-O
{[%clk 0:02:56.1]} 20. g4 {[%clk 0:02:39.7]} 20... a3 {[%clk 0:02:51.3]} 21. b3
{[%clk 0:02:39.6]} 21... Nd5 {[%clk 0:02:47.2]} 22. c4 {[%clk 0:02:23.3]} 22...
Nb4 {[%clk 0:02:37.4]} 23. Qc3 {[%clk 0:02:22.6]} 23... c5 {[%clk 0:02:37.2]}
24. dxc5 {[%clk 0:02:17.9]} 24... Bxc5 {[%clk 0:02:37.1]} 25. Nd7 {[%clk
0:02:14.1]} 25... Rxd7 {[%clk 0:02:16.5]} 26. Rxd7 {[%clk 0:02:16]} 26... Nc6
{[%clk 0:02:17.9]} 27. Rhd1 {[%clk 0:02:11.6]} 27... Bb4 {[%clk 0:02:13.7]} 28.
Qc2 {[%clk 0:02:07.5]} 28... Ne5 {[%clk 0:02:10.1]} 29. Be3 {[%clk 0:02:05.3]}
29... Qc6 {[%clk 0:02:07.6]} 30. Rd8 {[%clk 0:02:06.2]} 30... Nxg4 {[%clk
0:02:05.7]} 31. Rxf8+ {[%clk 0:02:06.4]} 31... Bxf8 {[%clk 0:02:07.6]} 32. Bc1
{[%clk 0:02:07.6]} 32... Qf3 {[%clk 0:02:06.9]} 33. Rd8 {[%clk 0:02:07.6]} 33...
Qf6 {[%clk 0:01:51.8]} 34. Ra8 {[%clk 0:02:06.8]} 34... Qe5 {[%clk 0:01:30.1]}
35. Bxa3 {[%clk 0:01:37.6]} 35... Qe1+ {[%clk 0:01:30.5]} 36. Bc1 {[%clk
0:01:28.1]} 36... Nxf2 {[%clk 0:01:28]} 37. a4 {[%clk 0:01:05]} 37... Nd1 {[%clk
0:01:22.2]} 38. Bd2 {[%clk 0:00:56.1]} 38... Qh1 {[%clk 0:01:12.5]} 39. Ka2
{[%clk 0:00:54.6]} 39... b5 {[%clk 0:01:11.2]} 40. Rb8 {[%clk 0:00:49.6]} 40...
bxc4 {[%clk 0:01:12]} 41. bxc4 {[%clk 0:00:46.1]} 41... Qh2 {[%clk 0:01:09.5]}
42. Rxf8+ {[%clk 0:00:46.1]} 42... Kxf8 {[%clk 0:01:10.8]} 43. Qxd1 {[%clk
0:00:48]} 43... Ke8 {[%clk 0:01:12.7]} 44. a5 {[%clk 0:00:48.9]} 44... Qd6
{[%clk 0:01:08.1]} 45. Qa4+ {[%clk 0:00:48.1]} 45... Kd8 {[%clk 0:01:06.3]} 46.
Qb4 {[%clk 0:00:49]} 46... Qxb4 {[%clk 0:00:54.5]} 47. Bxb4 {[%clk 0:00:49.3]}
47... g5 {[%clk 0:00:56.4]} 48. a6 {[%clk 0:00:45.4]} 48... Kc7 {[%clk
0:00:56.6]} 49. Bf8 {[%clk 0:00:44]} 49... g4 {[%clk 0:00:55.1]} 50. Bxh6 {[%clk
0:00:45.1]} 50... e5 {[%clk 0:00:57]} 51. Be3 {[%clk 0:00:44.5]} 51... f5 {[%clk
0:00:58.9]} 52. h6 {[%clk 0:00:45.9]} 52... f4 {[%clk 0:01:00.8]} 53. h7 {[%clk
0:00:47.2]} 53... fxe3 {[%clk 0:01:02.4]} 54. h8=Q {[%clk 0:00:48.1]} 54... e2
{[%clk 0:01:04.3]} 55. Qxe5+ {[%clk 0:00:48.9]} 1-0

[Event "*** Titled Tuesday 3|2 Blitz"]
[Site "Chess.com"]
[Date "2016.10.04"]
[Round "6"]
[White "LonesomeGeorge1"]
[Black "Wolverine_master"]
[Result "0-1"]
[WhiteElo "2168"]
[BlackElo "2065"]
[TimeControl "180+2"]
[EndTime "12:15:35 PDT"]
[Termination "Wolverine_master won by resignation"]

1. e4 {[%clk 0:03:02]} 1... d5 {[%clk 0:03:00.3]} 2. exd5 {[%clk 0:03:02.7]}
2... Qxd5 {[%clk 0:03:02.2]} 3. Nc3 {[%clk 0:03:03.9]} 3... Qd6 {[%clk
0:03:03.3]} 4. d4 {[%clk 0:03:01.8]} 4... Nf6 {[%clk 0:03:04.7]} 5. Nf3 {[%clk
0:03:03.1]} 5... a6 {[%clk 0:03:06.2]} 6. g3 {[%clk 0:03:03.5]} 6... Bg4 {[%clk
0:03:03]} 7. Bg2 {[%clk 0:03:01.1]} 7... Nc6 {[%clk 0:03:00.8]} 8. d5 {[%clk
0:02:45.7]} 8... Ne5 {[%clk 0:02:45]} 9. Bf4 {[%clk 0:02:43.5]} 9... Bxf3 {[%clk
0:02:02]} 10. Bxf3 {[%clk 0:02:40.5]} 10... Nxf3+ {[%clk 0:02:02.2]} 11. Qxf3
{[%clk 0:02:42.4]} 11... Qb6 {[%clk 0:02:03]} 12. O-O-O {[%clk 0:02:40.1]} 12...
O-O-O {[%clk 0:02:01.7]} 13. Rd3 {[%clk 0:02:26.9]} 13... g6 {[%clk 0:02:00.9]}
14. Re1 {[%clk 0:02:27]} 14... h5 {[%clk 0:01:40.3]} 15. h3 {[%clk 0:02:13.3]}
15... Rd7 {[%clk 0:01:31.3]} 16. Be3 {[%clk 0:02:01.5]} 16... Qa5 {[%clk
0:01:29.6]} 17. Rd4 {[%clk 0:01:38.8]} 17... Bh6 {[%clk 0:01:12.1]} 18. Ra4
{[%clk 0:01:27.3]} 18... Bxe3+ {[%clk 0:01:11.7]} 19. Qxe3 {[%clk 0:01:27.1]}
19... Qb6 {[%clk 0:01:03.3]} 20. Qxb6 {[%clk 0:01:06.9]} 20... cxb6 {[%clk
0:01:05.2]} 21. Rd4 {[%clk 0:01:07.3]} 21... Rhd8 {[%clk 0:01:02.7]} 22. Rd3
{[%clk 0:00:49.5]} 22... Nxd5 {[%clk 0:00:54.5]} 23. Nxd5 {[%clk 0:00:51.4]}
23... Rxd5 {[%clk 0:00:55.9]} 24. Rxd5 {[%clk 0:00:51.6]} 24... Rxd5 {[%clk
0:00:57.8]} 25. Rxe7 {[%clk 0:00:53.1]} 25... Rf5 {[%clk 0:00:56.1]} 26. Re2
{[%clk 0:00:48.8]} 26... Kc7 {[%clk 0:00:50.5]} 27. h4 {[%clk 0:00:48.3]} 27...
b5 {[%clk 0:00:48.9]} 28. Kd2 {[%clk 0:00:45.6]} 28... Kd6 {[%clk 0:00:44.4]}
29. Kd3 {[%clk 0:00:27.6]} 29... a5 {[%clk 0:00:37.8]} 30. f4 {[%clk 0:00:26.4]}
30... Rd5+ {[%clk 0:00:36.6]} 31. Ke4 {[%clk 0:00:26]} 31... Rc5 {[%clk
0:00:37]} 32. Rd2+ {[%clk 0:00:26.4]} 32... Ke6 {[%clk 0:00:36.8]} 33. c3 {[%clk
0:00:21.8]} 33... a4 {[%clk 0:00:31.5]} 34. a3 {[%clk 0:00:21.2]} 34... f5+
{[%clk 0:00:19.5]} 35. Kf3 {[%clk 0:00:20.4]} 35... Rd5 {[%clk 0:00:19.8]} 36.
Re2+ {[%clk 0:00:20.7]} 36... Kd7 {[%clk 0:00:20.6]} 37. Ke3 {[%clk 0:00:17.2]}
37... Kd6 {[%clk 0:00:18.8]} 38. Rc2 {[%clk 0:00:18.6]} 38... Kc5 {[%clk
0:00:18]} 39. Kf3 {[%clk 0:00:16.9]} 39... Kc4 {[%clk 0:00:16.8]} 40. Re2 {[%clk
0:00:17.8]} 40... Kb3 {[%clk 0:00:14.6]} 41. Ke3 {[%clk 0:00:16.9]} 41... Rd1
{[%clk 0:00:14.4]} 42. Kf3 {[%clk 0:00:12.4]} 42... Rb1 {[%clk 0:00:14.4]} 43.
Re5 {[%clk 0:00:13.6]} 43... Rxb2 {[%clk 0:00:11.7]} 44. Rxb5+ {[%clk
0:00:14.7]} 44... Kxa3 {[%clk 0:00:13.3]} 45. Re5 {[%clk 0:00:13]} 45... Ka2
{[%clk 0:00:12.3]} 46. Re6 {[%clk 0:00:14]} 46... a3 {[%clk 0:00:12.5]} 47. Rxg6
{[%clk 0:00:15.6]} 47... Kb1 {[%clk 0:00:11]} 48. Re6 {[%clk 0:00:11.4]} 48...
a2 {[%clk 0:00:05]} 49. Re1+ {[%clk 0:00:12.7]} 49... Kc2 {[%clk 0:00:06]} 50.
Ra1 {[%clk 0:00:14.6]} 50... Kb3 {[%clk 0:00:07.1]} 51. Ke3 {[%clk 0:00:15.4]}
51... Rb1 {[%clk 0:00:08.1]} 52. Rxa2 {[%clk 0:00:16.9]} 52... Kxa2 {[%clk
0:00:09.5]} 53. Kd4 {[%clk 0:00:18.8]} 53... Kb3 {[%clk 0:00:10.9]} 54. Ke5
{[%clk 0:00:20.2]} 54... Rg1 {[%clk 0:00:09.5]} 55. Kxf5 {[%clk 0:00:21.3]}
55... Rxg3 {[%clk 0:00:10.6]} 56. Ke6 {[%clk 0:00:22.5]} 56... Kxc3 {[%clk
0:00:11.5]} 57. f5 {[%clk 0:00:24.4]} 57... b5 {[%clk 0:00:12.5]} 58. f6 {[%clk
0:00:26.3]} 58... b4 {[%clk 0:00:13.7]} 59. f7 {[%clk 0:00:28.2]} 59... Rf3
{[%clk 0:00:14.9]} 60. f8=Q {[%clk 0:00:29.2]} 0-1

[Event "*** Titled Tuesday 3|2 Blitz"]
[Site "Chess.com"]
[Date "2016.10.04"]
[Round "6"]
[White "andretta"]
[Black "CheckThis4"]
[Result "1-0"]
[WhiteElo "2257"]
[BlackElo "2331"]
[TimeControl "180+2"]
[EndTime "12:16:05 PDT"]
[Termination "andretta won by checkmate"]

1. b3 {[%clk 0:03:02]} 1... d5 {[%clk 0:02:20]} 2. Bb2 {[%clk 0:03:03.9]} 2...
Nf6 {[%clk 0:02:20.9]} 3. Bxf6 {[%clk 0:02:59.7]} 3... exf6 {[%clk 0:02:16.4]}
4. e3 {[%clk 0:02:48.3]} 4... c6 {[%clk 0:02:17.3]} 5. d4 {[%clk 0:02:48.1]}
5... f5 {[%clk 0:01:57.3]} 6. g3 {[%clk 0:02:46.1]} 6... Nd7 {[%clk 0:01:57.5]}
7. Bg2 {[%clk 0:02:46.2]} 7... Nf6 {[%clk 0:01:58.2]} 8. Ne2 {[%clk 0:02:43]}
8... Be6 {[%clk 0:01:58.5]} 9. O-O {[%clk 0:02:40.7]} 9... Bd6 {[%clk 0:01:56]}
10. Nd2 {[%clk 0:02:40.6]} 10... h5 {[%clk 0:01:55.6]} 11. h4 {[%clk 0:02:37.8]}
11... Ng4 {[%clk 0:01:52.1]} 12. c4 {[%clk 0:02:31.7]} 12... g5 {[%clk
0:01:48.9]} 13. cxd5 {[%clk 0:02:29.2]} 13... Bxd5 {[%clk 0:01:30.6]} 14. Bxd5
{[%clk 0:02:26.8]} 14... cxd5 {[%clk 0:01:32.5]} 15. Nf3 {[%clk 0:02:24.2]}
15... f6 {[%clk 0:01:19.1]} 16. Qc2 {[%clk 0:02:14.6]} 16... Qd7 {[%clk
0:01:18.2]} 17. Rac1 {[%clk 0:02:10.8]} 17... Rg8 {[%clk 0:01:08.8]} 18. Nc3
{[%clk 0:01:58.9]} 18... Ba3 {[%clk 0:01:00.5]} 19. Rce1 {[%clk 0:01:53.5]}
19... Rc8 {[%clk 0:00:57]} 20. Qd3 {[%clk 0:01:50.9]} 20... Bb4 {[%clk
0:00:55.2]} 21. Rc1 {[%clk 0:01:49.3]} 21... Bxc3 {[%clk 0:00:51.8]} 22. Rxc3
{[%clk 0:01:48.9]} 22... Rxc3 {[%clk 0:00:52.7]} 23. Qxc3 {[%clk 0:01:48]} 23...
f4 {[%clk 0:00:50.1]} 24. exf4 {[%clk 0:01:40.4]} 24... gxf4 {[%clk 0:00:50.9]}
25. Re1+ {[%clk 0:01:31.4]} 25... Kf7 {[%clk 0:00:51.8]} 26. Qd3 {[%clk
0:01:27.7]} 26... Rg7 {[%clk 0:00:48.4]} 27. Kg2 {[%clk 0:01:16.1]} 27... fxg3
{[%clk 0:00:48.4]} 28. fxg3 {[%clk 0:01:13.9]} 28... Nh6 {[%clk 0:00:47.8]} 29.
Rf1 {[%clk 0:01:10.9]} 29... Kg8 {[%clk 0:00:40.5]} 30. Nh2 {[%clk 0:00:58.4]}
30... Qe6 {[%clk 0:00:35]} 31. Qf3 {[%clk 0:00:53.9]} 31... Qe4 {[%clk
0:00:16.1]} 32. Qxe4 {[%clk 0:00:51.7]} 32... dxe4 {[%clk 0:00:18]} 33. Rxf6
{[%clk 0:00:49.5]} 33... Kh7 {[%clk 0:00:18.6]} 34. Nf1 {[%clk 0:00:38.2]} 34...
Ng4 {[%clk 0:00:18]} 35. Re6 {[%clk 0:00:35.3]} 35... Rf7 {[%clk 0:00:18.5]} 36.
Rxe4 {[%clk 0:00:29.1]} 36... Rf2+ {[%clk 0:00:19.4]} 37. Kg1 {[%clk 0:00:24.3]}
37... Rxa2 {[%clk 0:00:20.6]} 38. d5 {[%clk 0:00:20]} 38... Kg6 {[%clk 0:00:12]}
39. d6 {[%clk 0:00:18.1]} 39... Nf6 {[%clk 0:00:13.1]} 40. Re6 {[%clk
0:00:15.8]} 40... Ra1 {[%clk 0:00:14.3]} 41. Kf2 {[%clk 0:00:12.4]} 41... Kf5
{[%clk 0:00:13.7]} 42. Re7 {[%clk 0:00:09.4]} 42... Ne4+ {[%clk 0:00:13.6]} 43.
Rxe4 {[%clk 0:00:04.3]} 43... Kxe4 {[%clk 0:00:15.5]} 44. Nd2+ {[%clk
0:00:04.9]} 44... Kd3 {[%clk 0:00:11.2]} 45. d7 {[%clk 0:00:06.8]} 45... Kxd2
{[%clk 0:00:11.8]} 46. d8=Q+ {[%clk 0:00:07.7]} 46... Kc1 {[%clk 0:00:13.1]} 47.
Qg5+ {[%clk 0:00:08.5]} 47... Kb2 {[%clk 0:00:13.7]} 48. Qxh5 {[%clk 0:00:09.4]}
48... Kxb3 {[%clk 0:00:14.2]} 49. Qd5+ {[%clk 0:00:09.9]} 49... Kc3 {[%clk
0:00:14.7]} 50. Qxb7 {[%clk 0:00:10.3]} 50... Ra2+ {[%clk 0:00:15.4]} 51. Kf3
{[%clk 0:00:11.2]} 51... a5 {[%clk 0:00:16.9]} 52. h5 {[%clk 0:00:11.3]} 52...
a4 {[%clk 0:00:17.8]} 53. h6 {[%clk 0:00:11.7]} 53... a3 {[%clk 0:00:19.2]} 54.
h7 {[%clk 0:00:12.6]} 54... Kc2 {[%clk 0:00:16.7]} 55. h8=Q {[%clk 0:00:12.5]}
55... Rb2 {[%clk 0:00:18.6]} 56. Qc6+ {[%clk 0:00:12]} 56... Kb1 {[%clk
0:00:19.3]} 57. Qh1+ {[%clk 0:00:11.8]} 57... Ka2 {[%clk 0:00:20.2]} 58. Qc4+
{[%clk 0:00:12.6]} 58... Rb3+ {[%clk 0:00:21.3]} 59. Qxb3+ {[%clk 0:00:09.8]}
59... Kxb3 {[%clk 0:00:21.8]} 60. Qa1 {[%clk 0:00:10.6]} 60... a2 {[%clk
0:00:22.9]} 61. g4 {[%clk 0:00:11.6]} 61... Kc2 {[%clk 0:00:24.8]} 62. g5 {[%clk
0:00:12.7]} 62... Kd3 {[%clk 0:00:26.7]} 63. g6 {[%clk 0:00:13.9]} 63... Kd2
{[%clk 0:00:28.3]} 64. g7 {[%clk 0:00:15.1]} 64... Kd3 {[%clk 0:00:30.2]} 65.
g8=Q {[%clk 0:00:16.1]} 65... Kd2 {[%clk 0:00:32.1]} 66. Qgxa2+ {[%clk
0:00:15.6]} 66... Kd3 {[%clk 0:00:32.6]} 67. Qa6+ {[%clk 0:00:14.1]} 67... Kc2
{[%clk 0:00:33.5]} 68. Q1a3 {[%clk 0:00:13.1]} 68... Kb1 {[%clk 0:00:34.5]} 69.
Qb5+ {[%clk 0:00:12.4]} 69... Kc2 {[%clk 0:00:35.4]} 70. Qbb2+ {[%clk
0:00:13.1]} 70... Kd1 {[%clk 0:00:36.6]} 71. Qaa1# {[%clk 0:00:14.1]} 1-0

[Event "*** Titled Tuesday 3|2 Blitz"]
[Site "Chess.com"]
[Date "2016.10.04"]
[Round "6"]
[White "ChessSkool"]
[Black "Usurpov"]
[Result "1-0"]
[WhiteElo "2447"]
[BlackElo "2286"]
[TimeControl "180+2"]
[EndTime "12:16:36 PDT"]
[Termination "ChessSkool won by resignation"]

1. Nf3 {[%clk 0:03:01.9]} 1... Nf6 {[%clk 0:03:00.2]} 2. g3 {[%clk 0:03:02.9]}
2... g6 {[%clk 0:03:01.3]} 3. Bg2 {[%clk 0:03:04]} 3... Bg7 {[%clk 0:03:01.8]}
4. O-O {[%clk 0:03:04.7]} 4... O-O {[%clk 0:03:02.9]} 5. d4 {[%clk 0:03:05.7]}
5... d5 {[%clk 0:03:03.8]} 6. c4 {[%clk 0:03:06.9]} 6... dxc4 {[%clk 0:03:04.2]}
7. Na3 {[%clk 0:03:08.4]} 7... Nc6 {[%clk 0:03:02.8]} 8. Nxc4 {[%clk 0:03:09.1]}
8... Be6 {[%clk 0:03:03.7]} 9. b3 {[%clk 0:03:10.3]} 9... Bd5 {[%clk 0:03:04.6]}
10. e3 {[%clk 0:03:10.1]} 10... a5 {[%clk 0:03:04.8]} 11. a4 {[%clk 0:03:11.3]}
11... Nb4 {[%clk 0:03:01.7]} 12. Ba3 {[%clk 0:03:11.4]} 12... c6 {[%clk
0:03:00.8]} 13. Rc1 {[%clk 0:03:11.9]} 13... b5 {[%clk 0:02:39.3]} 14. axb5
{[%clk 0:02:46.9]} 14... cxb5 {[%clk 0:02:26.8]} 15. Bxb4 {[%clk 0:02:47.3]}
15... bxc4 {[%clk 0:02:08.6]} 16. bxc4 {[%clk 0:02:47.8]} 16... Bxf3 {[%clk
0:01:44.1]} 17. Qxf3 {[%clk 0:02:37.7]} 17... axb4 {[%clk 0:01:40.6]} 18. Qxa8
{[%clk 0:02:38]} 18... Qxa8 {[%clk 0:01:42.5]} 19. Bxa8 {[%clk 0:02:38.7]} 19...
Rxa8 {[%clk 0:01:44.1]} 20. Rb1 {[%clk 0:02:38.9]} 20... Rb8 {[%clk 0:01:35.7]}
21. Rb2 {[%clk 0:02:38.5]} 21... e5 {[%clk 0:01:29.9]} 22. Rfb1 {[%clk
0:02:30.2]} 22... exd4 {[%clk 0:01:20.2]} 23. Rxb4 {[%clk 0:02:17.1]} 23... Rxb4
{[%clk 0:01:11.8]} 24. Rxb4 {[%clk 0:02:19]} 24... Bf8 {[%clk 0:00:32]} 25. Rb8
{[%clk 0:02:15.3]} 25... dxe3 {[%clk 0:00:27.4]} 26. fxe3 {[%clk 0:02:15.4]}
26... Ne4 {[%clk 0:00:27.9]} 27. Re8 {[%clk 0:02:12]} 27... f5 {[%clk
0:00:26.5]} 28. Rc8 {[%clk 0:01:57.1]} 28... Kf7 {[%clk 0:00:23.4]} 29. Kf1
{[%clk 0:01:57.2]} 29... h5 {[%clk 0:00:21.8]} 30. Ke2 {[%clk 0:01:56.4]} 30...
Bd6 {[%clk 0:00:20.8]} 31. Kd3 {[%clk 0:01:50.8]} 31... Ke6 {[%clk 0:00:19]} 32.
Rg8 {[%clk 0:01:48.4]} 32... Kf7 {[%clk 0:00:18.7]} 33. Ra8 {[%clk 0:01:44.8]}
33... h4 {[%clk 0:00:19.3]} 34. gxh4 {[%clk 0:01:43.1]} 34... Bxh2 {[%clk
0:00:19.3]} 35. Kd4 {[%clk 0:01:41.3]} 35... Bd6 {[%clk 0:00:13.4]} 36. Kd5
{[%clk 0:01:38.7]} 36... Bc5 {[%clk 0:00:11.4]} 37. Rh8 {[%clk 0:01:23.4]} 37...
Kg7 {[%clk 0:00:11.9]} 38. Re8 {[%clk 0:01:23.2]} 38... Bxe3 {[%clk 0:00:12.8]}
39. Ke5 {[%clk 0:00:55]} 39... Bc5 {[%clk 0:00:09.4]} 40. h5 {[%clk 0:00:46.3]}
40... Bd6+ {[%clk 0:00:09.4]} 41. Ke6 {[%clk 0:00:43.6]} 41... gxh5 {[%clk
0:00:06.9]} 42. Kxf5 {[%clk 0:00:41.2]} 42... Ng3+ {[%clk 0:00:05.9]} 43. Kg5
{[%clk 0:00:28.4]} 43... Kf7 {[%clk 0:00:06.7]} 44. Re3 {[%clk 0:00:23.6]} 44...
Be7+ {[%clk 0:00:02.8]} 45. Kf4 {[%clk 0:00:20.8]} 45... Bd6+ {[%clk 0:00:04.7]}
46. Kg5 {[%clk 0:00:19.7]} 46... Be7+ {[%clk 0:00:06.4]} 47. Kf4 {[%clk
0:00:20]} 47... Bd6+ {[%clk 0:00:08]} 48. Kf3 {[%clk 0:00:21.4]} 48... Nf5
{[%clk 0:00:08.2]} 49. Re1 {[%clk 0:00:15.4]} 49... Ne7 {[%clk 0:00:09.2]} 50.
Rh1 {[%clk 0:00:14.6]} 50... Kg6 {[%clk 0:00:09.8]} 51. Ke4 {[%clk 0:00:15.1]}
51... Bb4 {[%clk 0:00:10.5]} 52. Ke5 {[%clk 0:00:14.3]} 52... Nc6+ {[%clk
0:00:09.9]} 53. Kd5 {[%clk 0:00:15.3]} 53... Ne7+ {[%clk 0:00:10.1]} 54. Ke6
{[%clk 0:00:16.7]} 54... Nc6 {[%clk 0:00:10.9]} 55. Rg1+ {[%clk 0:00:17]} 55...
Kh6 {[%clk 0:00:12.3]} 56. Kd5 {[%clk 0:00:12.1]} 56... Na5 {[%clk 0:00:12.8]}
57. Rb1 {[%clk 0:00:10.1]} 57... Nxc4 {[%clk 0:00:13]} 58. Rxb4 {[%clk
0:00:08.9]} 58... Ne3+ {[%clk 0:00:12.5]} 59. Ke5 {[%clk 0:00:08.4]} 59... Kg5
{[%clk 0:00:12.9]} 60. Rb8 {[%clk 0:00:07.2]} 60... Ng4+ {[%clk 0:00:13.5]} 61.
Ke4 {[%clk 0:00:08.5]} 61... Kh4 {[%clk 0:00:14.2]} 62. Kf4 {[%clk 0:00:08.3]}
62... Nh6 {[%clk 0:00:14.1]} 63. Rb1 {[%clk 0:00:08.2]} 63... Kh3 {[%clk
0:00:12.3]} 64. Rh1+ {[%clk 0:00:09.4]} 64... Kg2 {[%clk 0:00:13.7]} 65. Rxh5
{[%clk 0:00:11]} 65... Nf7 {[%clk 0:00:15.2]} 66. Rd5 {[%clk 0:00:11]} 66... Kf2
{[%clk 0:00:15.6]} 67. Rd2+ {[%clk 0:00:10.8]} 67... Ke1 {[%clk 0:00:16.3]} 68.
Rd7 {[%clk 0:00:12.6]} 68... Nh6 {[%clk 0:00:16.8]} 69. Kg5 {[%clk 0:00:13.6]}
69... Ng8 {[%clk 0:00:17.8]} 70. Rg7 {[%clk 0:00:14.5]} 1-0

[Event "*** Titled Tuesday 3|2 Blitz"]
[Site "Chess.com"]
[Date "2016.10.04"]
[Round "6"]
[White "VMikhalevski"]
[Black "GMHess"]
[Result "0-1"]
[WhiteElo "2469"]
[BlackElo "2585"]
[TimeControl "180+2"]
[EndTime "12:17:01 PDT"]
[Termination "GMHess won by resignation"]

1. Nf3 {[%clk 0:02:59]} 1... g6 {[%clk 0:03:02]} 2. g3 {[%clk 0:02:57.3]} 2...
Bg7 {[%clk 0:03:03.9]} 3. Bg2 {[%clk 0:02:58.9]} 3... e5 {[%clk 0:03:05.6]} 4.
O-O {[%clk 0:02:59.3]} 4... Nc6 {[%clk 0:03:07.2]} 5. c4 {[%clk 0:02:58.9]} 5...
f5 {[%clk 0:03:06.1]} 6. d3 {[%clk 0:02:59]} 6... Nf6 {[%clk 0:03:07.7]} 7. Nc3
{[%clk 0:02:59.6]} 7... O-O {[%clk 0:03:09.2]} 8. Rb1 {[%clk 0:03:00.1]} 8... d6
{[%clk 0:03:07.6]} 9. b4 {[%clk 0:03:01]} 9... h6 {[%clk 0:03:08.9]} 10. b5
{[%clk 0:03:02]} 10... Ne7 {[%clk 0:03:09.7]} 11. e3 {[%clk 0:03:00.3]} 11... g5
{[%clk 0:03:08.2]} 12. a4 {[%clk 0:02:59.6]} 12... Qe8 {[%clk 0:03:05]} 13. Ba3
{[%clk 0:02:58.9]} 13... f4 {[%clk 0:02:39.5]} 14. exf4 {[%clk 0:02:49]} 14...
gxf4 {[%clk 0:02:16.8]} 15. c5 {[%clk 0:02:48.2]} 15... Nf5 {[%clk 0:02:17.5]}
16. Re1 {[%clk 0:02:46.4]} 16... Qh5 {[%clk 0:02:10.2]} 17. cxd6 {[%clk
0:02:46.4]} 17... fxg3 {[%clk 0:01:49.5]} 18. hxg3 {[%clk 0:02:34.6]} 18... cxd6
{[%clk 0:01:50.5]} 19. Ne4 {[%clk 0:02:32.1]} 19... Ng4 {[%clk 0:01:43.1]} 20.
Nxd6 {[%clk 0:02:23.3]} 20... Nd4 {[%clk 0:01:40.6]} 21. Nh4 {[%clk 0:02:04.4]}
21... Bf6 {[%clk 0:00:41.6]} 22. Nxc8 {[%clk 0:01:58.6]} 22... Bxh4 {[%clk
0:00:42.4]} 23. Re4 {[%clk 0:01:55.9]} 23... Rf4 {[%clk 0:00:36]} 24. gxf4
{[%clk 0:01:13.1]} 24... Bxf2+ {[%clk 0:00:36.7]} 25. Kf1 {[%clk 0:01:14.1]}
25... Qh4 {[%clk 0:00:11.2]} 26. Rxd4 {[%clk 0:01:04.4]} 26... Ne3+ {[%clk
0:00:09.7]} 27. Ke2 {[%clk 0:01:03.5]} 27... Nxd1 {[%clk 0:00:11.4]} 28. Ne7+
{[%clk 0:00:58.4]} 28... Kf7 {[%clk 0:00:07.3]} 29. Bd5+ {[%clk 0:00:57.1]}
29... Ke8 {[%clk 0:00:07.3]} 30. Rxd1 {[%clk 0:00:52.6]} 30... Bxd4 {[%clk
0:00:07.9]} 31. Rf1 {[%clk 0:00:50.2]} 31... Qh2+ {[%clk 0:00:07.2]} 32. Kd1
{[%clk 0:00:49.3]} 32... Qh3 {[%clk 0:00:07.5]} 33. Rf3 {[%clk 0:00:47.1]} 33...
Qh1+ {[%clk 0:00:08.5]} 34. Kc2 {[%clk 0:00:48]} 34... Qa1 {[%clk 0:00:10.1]}
35. Bd6 {[%clk 0:00:37.9]} 35... Qxa4+ {[%clk 0:00:10.3]} 36. Kd2 {[%clk
0:00:38.5]} 36... Qa5+ {[%clk 0:00:10.1]} 37. Ke2 {[%clk 0:00:37.9]} 37... e4
{[%clk 0:00:06.1]} 38. Bxe4 {[%clk 0:00:35.2]} 38... Rd8 {[%clk 0:00:07.1]} 39.
Nf5 {[%clk 0:00:28.4]} 39... Bf6 {[%clk 0:00:04.4]} 40. Rg3 {[%clk 0:00:26.9]}
40... Rxd6 {[%clk 0:00:04.7]} 41. Nxd6+ {[%clk 0:00:27.2]} 41... Kd7 {[%clk
0:00:06.3]} 42. Nc4 {[%clk 0:00:26]} 42... Qxb5 {[%clk 0:00:06.2]} 43. Rg6
{[%clk 0:00:26.5]} 43... Qh5+ {[%clk 0:00:07.1]} 44. Kd2 {[%clk 0:00:26.1]}
44... Qh2+ {[%clk 0:00:08.2]} 45. Ke3 {[%clk 0:00:24.4]} 45... Qh3+ {[%clk
0:00:07.5]} 46. Kd2 {[%clk 0:00:25.2]} 46... Qh2+ {[%clk 0:00:06.1]} 47. Ke3
{[%clk 0:00:25.5]} 47... Be7 {[%clk 0:00:05.9]} 48. Bxb7 {[%clk 0:00:21.3]}
48... Bc5+ {[%clk 0:00:07]} 49. d4 {[%clk 0:00:21.6]} 49... Qh3+ {[%clk
0:00:04.6]} 50. Ke4 {[%clk 0:00:15]} 50... Qh1+ {[%clk 0:00:05.1]} 51. Ke5
{[%clk 0:00:11.4]} 51... Qe1+ {[%clk 0:00:02.9]} 52. Be4 {[%clk 0:00:11.6]}
52... Be7 {[%clk 0:00:03.3]} 53. Rg7 {[%clk 0:00:11.7]} 53... a5 {[%clk
0:00:04.2]} 54. Nb6+ {[%clk 0:00:11.3]} 54... Ke8 {[%clk 0:00:04.6]} 55. Nd5
{[%clk 0:00:09.8]} 55... Bf8 {[%clk 0:00:04.9]} 56. Ra7 {[%clk 0:00:09.2]} 56...
Bb4 {[%clk 0:00:05]} 57. Kf5 {[%clk 0:00:08.5]} 57... Qh4 {[%clk 0:00:04.1]} 58.
Nf6+ {[%clk 0:00:08.6]} 58... Kd8 {[%clk 0:00:04.1]} 59. Rd7+ {[%clk 0:00:08.9]}
59... Kc8 {[%clk 0:00:05.4]} 60. Bb7+ {[%clk 0:00:09.9]} 60... Kb8 {[%clk
0:00:06.8]} 61. Bd5 {[%clk 0:00:10.4]} 61... Qh3+ {[%clk 0:00:07.5]} 62. Kg6
{[%clk 0:00:08.6]} 62... Qd3+ {[%clk 0:00:07.3]} 63. Be4 {[%clk 0:00:08]} 63...
Qg3+ {[%clk 0:00:07.8]} 64. Kf5 {[%clk 0:00:08.4]} 64... Qh3+ {[%clk 0:00:08.4]}
65. Ke5 {[%clk 0:00:09.5]} 65... Kc8 {[%clk 0:00:04.7]} 66. Bf5 {[%clk
0:00:08.9]} 66... Qe3+ {[%clk 0:00:05.9]} 67. Kd5 {[%clk 0:00:09.9]} 67... Kb8
{[%clk 0:00:06.2]} 68. Rf7 {[%clk 0:00:09.2]} 68... Qb3+ {[%clk 0:00:06.6]} 69.
Kc6 {[%clk 0:00:09]} 69... Qxf7 {[%clk 0:00:08.5]} 70. Nd7+ {[%clk 0:00:10.1]}
70... Ka7 {[%clk 0:00:09.4]} 71. Be4 {[%clk 0:00:10.6]} 71... Qc4+ {[%clk
0:00:08.9]} 72. Nc5 {[%clk 0:00:07.9]} 72... Bxc5 {[%clk 0:00:10.2]} 73. Bd5
{[%clk 0:00:09.6]} 73... Qxd4 {[%clk 0:00:10.9]} 0-1